fUST/lending_fUST_20260420
["ID","MTS","AMOUNT","RATE_DAILY","PERIOD"]
[420881730,1776696643987,-968.78,0.00013972,2]
[420881731,1776696643996,-500.0,0.00013972,2]
[420881732,1776696644006,-836.22,0.00013972,2]
[420881733,1776696644015,-500.0,0.00013972,2]
[420881734,1776696644025,-8847.38,0.00013972,2]
[420881735,1776696644034,-500.0,0.00013972,2]
[420881736,1776696644044,-547.13,0.00013972,2]
[420881737,1776696644053,-3313.74,0.00013972,2]
[420881738,1776696644063,-1371.83,0.00013972,2]
[420881739,1776696644073,-500.0,0.00013972,2]
[420881740,1776696644083,-5074.56,0.00013972,2]
[420881741,1776696644092,-1505.97,0.00013972,2]
[420881742,1776696644101,-1661.78,0.00013972,2]
[420881743,1776696644111,-627.54,0.00013972,2]
[420881744,1776696644120,-1009.93,0.00013972,2]
[420881745,1776696644130,-531.0,0.00013972,2]
[420881746,1776696644140,-500.0,0.00013972,2]
[420881747,1776696644149,-539.83,0.00013972,2]
[420881748,1776696644159,-743.11,0.00013972,2]
[420881749,1776696644168,-2073.43,0.00013972,2]
[420881750,1776696644178,-554.89,0.00013972,2]
[420881751,1776696644188,-582.62,0.00013972,2]
[420881752,1776696644197,-500.0,0.00013972,2]
[420881753,1776696644207,-2908.99,0.00013972,2]
[420881754,1776696644216,-500.0,0.00013972,2]
[420881755,1776696644226,-701.99,0.00013972,2]
[420881756,1776696644235,-1141.9,0.00013972,2]
[420881757,1776696644244,-1249.46,0.00013972,2]
[420881758,1776696644254,-500.0,0.00013972,2]
[420881759,1776696644263,-707.82,0.00013972,2]
[420881760,1776696644273,-7036.91,0.00013972,2]
[420881761,1776696644283,-2377.27,0.00013972,2]
[420881762,1776696644292,-875.64,0.00013972,2]
[420881763,1776696644303,-6048.3,0.00013972,2]
[420881764,1776696644312,-500.0,0.00013972,2]
[420881765,1776696644322,-1882.47,0.00013972,2]
[420881766,1776696644331,-500.0,0.00013972,2]
[420881767,1776696644341,-3034.32,0.00013972,2]
[420881768,1776696644351,-500.0,0.00013972,2]
[420881769,1776696644360,-818.65,0.00013972,2]
[420881770,1776696644370,-699.34,0.00013972,2]
[420881771,1776696644380,-3464.74,0.00013972,2]
[420881772,1776696644389,-4871.73,0.00013972,2]
[420881773,1776696644399,-500.0,0.00013972,2]
[420881774,1776696644408,-500.0,0.00013972,2]
[420881775,1776696644418,-6287.28,0.00013972,2]
[420881776,1776696644428,-500.0,0.00013972,2]
[420881777,1776696644438,-890.69,0.00013972,2]
[420881778,1776696644448,-500.0,0.00013972,2]
[420881779,1776696644457,-485.74081897,0.00013972,2]
[420881780,1776696644467,-500.0,0.00013972,2]
[420881781,1776696644476,-5009.47,0.00013972,2]
[420881782,1776696644486,-500.0,0.00013972,2]
[420881783,1776696644495,-15915.66,0.00013972,2]
[420881784,1776696644505,-4884.2,0.00013972,2]
[420881785,1776696644514,-500.0,0.00013972,2]
[420881786,1776696644524,-10006.4,0.00013972,2]
[420881787,1776696644533,-4637.64,0.00013972,2]
[420881788,1776696644542,-500.0,0.00013972,2]
[420881789,1776696644552,-500.0,0.00013972,2]
[420881790,1776696644562,-730.92,0.00013972,2]
[420881791,1776696644571,-1632.29,0.00013972,2]
[420881792,1776696644581,-1363.78,0.00013972,2]
[420881793,1776696644590,-500.0,0.00013972,2]
[420881794,1776696644600,-3657.71,0.00013972,2]
[420881795,1776696644610,-2485.21,0.00013972,2]
[420881796,1776696644619,-1206.45,0.00013972,2]
[420881797,1776696644628,-15895.85,0.00013972,2]
[420881798,1776696644638,-500.0,0.00013972,2]
[420881799,1776696644647,-1632.78,0.00013972,2]
[420881800,1776696644657,-500.0,0.00013972,2]
[420881801,1776696644667,-500.0,0.00013972,2]
[420881802,1776696644676,-186.33110611,0.00013972,2]
[420881803,1776696644686,-11810.45,0.00013972,2]
[420881804,1776696644696,-9374.56,0.00013972,2]
[420881805,1776696644706,-500.0,0.00013972,2]
[420881806,1776696644715,-1190.0,0.00013973,2]
[420881807,1776696644724,-154.0,0.00013997,2]
[420881808,1776696644734,-154.0,0.00013997,2]
[420881809,1776696644744,-154.0,0.00013997,2]
[420881810,1776696644755,-154.0,0.00013997,2]
[420881811,1776696644764,-154.0,0.00013997,2]
[420881812,1776696644774,-154.0,0.00013997,2]
[420881813,1776696644784,-154.0,0.00013997,2]
[420881814,1776696644794,-154.0,0.00013997,2]
[420881815,1776696644803,-154.0,0.00013997,2]
[420881816,1776696644813,-223.40107083,0.00013997,2]
[420881817,1776696644822,-16443.15817479,0.00014,2]
[420881818,1776696644832,-395.0,0.00014,2]
[420881819,1776696644842,-500.0,0.00014246,2]
[420881820,1776696644851,-500.0,0.00014246,2]
[420881821,1776696644861,-539.182,0.00014246,2]
[420881822,1776696644870,-610.26,0.00014246,2]
[420881823,1776696644879,-602.11,0.00014246,2]
[420881824,1776696644889,-500.0,0.00014246,2]
[420881825,1776696644898,-500.0,0.00014246,2]
[420881826,1776696644907,-500.0,0.00014246,2]
[420881827,1776696644917,-1000.0,0.00014246,2]
[420881828,1776696644927,-956.57,0.00014246,2]
[420881829,1776696644936,-630.47,0.00014246,2]
[420881830,1776696644946,-500.0,0.00014246,2]
[420881831,1776696644955,-500.0,0.00014246,2]
[420881832,1776696644965,-500.0,0.00014246,2]
[420881833,1776696644975,-532.09,0.00014246,2]
[420881834,1776696644984,-622.23,0.00014246,2]
[420881835,1776696644994,-500.0,0.00014246,2]
[420881836,1776696645004,-500.0,0.00014246,2]
[420881837,1776696645013,-704.3,0.00014246,2]
[420881838,1776696645023,-690.29,0.00014246,2]
[420881839,1776696645032,-789.51,0.00014246,2]
[420881840,1776696645041,-515.0,0.00014246,2]
[420881841,1776696645051,-832.46,0.00014246,2]
[420881842,1776696645060,-930.35,0.00014246,2]
[420881843,1776696645070,-955.21,0.00014246,2]
[420881844,1776696645080,-726.69,0.00014246,2]
[420881845,1776696645089,-517.82,0.00014246,2]
[420881846,1776696645099,-500.0,0.00014246,2]
[420881847,1776696645108,-1042.5,0.00014246,2]
[420881848,1776696645117,-500.0,0.00014246,2]
[420881849,1776696645126,-565.17,0.00014246,2]
[420881850,1776696645135,-1002.87,0.00014246,2]
[420881851,1776696645145,-500.0,0.00014246,2]
[420881852,1776696645154,-818.35,0.00014246,2]
[420881853,1776696645164,-500.0,0.00014246,2]
[420881854,1776696645173,-3024.12,0.00014246,2]
[420881855,1776696645182,-866.55,0.00014246,2]
[420881856,1776696645192,-500.0,0.00014246,2]
[420881857,1776696645201,-500.0,0.00014246,2]
[420881858,1776696645210,-500.0,0.00014246,2]
[420881859,1776696645220,-587.08,0.00014246,2]
[420881860,1776696645229,-500.0,0.00014246,2]
[420881861,1776696645239,-500.0,0.00014246,2]
[420881862,1776696645248,-500.0,0.00014246,2]
[420881863,1776696645257,-543.95,0.00014246,2]
[420881864,1776696645267,-963.63,0.00014246,2]
[420881865,1776696645276,-500.0,0.00014246,2]
[420881866,1776696645286,-1768.45,0.00014246,2]
[420881867,1776696645295,-500.0,0.00014246,2]
[420881868,1776696645304,-591.8,0.00014246,2]
[420881869,1776696645313,-822.54,0.00014246,2]
[420881870,1776696645323,-500.0,0.00014246,2]
[420881871,1776696645332,-500.0,0.00014246,2]
[420881872,1776696645341,-500.0,0.00014246,2]
[420881873,1776696645351,-754.0,0.00014246,2]
[420881874,1776696645361,-500.0,0.00014246,2]
[420881875,1776696645370,-500.0,0.00014246,2]
[420881876,1776696645380,-500.0,0.00014246,2]
[420881877,1776696645389,-550.65,0.00014246,2]
[420881878,1776696645399,-500.0,0.00014246,2]
[420881879,1776696645409,-1156.48,0.00014246,2]
[420881880,1776696645419,-500.0,0.00014246,2]
[420881881,1776696645429,-1510.15,0.00014246,2]
[420881882,1776696645439,-500.0,0.00014246,2]
[420881883,1776696645449,-1473.14,0.00014246,2]
[420881884,1776696645458,-500.0,0.00014246,2]
[420881885,1776696645467,-1885.11,0.00014246,2]
[420881886,1776696645477,-500.0,0.00014246,2]
[420881887,1776696645486,-609.17,0.00014246,2]
[420881888,1776696645495,-828.28,0.00014246,2]
[420881889,1776696645504,-500.0,0.00014246,2]
[420881890,1776696645514,-968.9,0.00014246,2]
[420881891,1776696645523,-4271.56,0.00014246,2]
[420881892,1776696645532,-844.7,0.00014246,2]
[420881893,1776696645542,-7286.0,0.00014246,2]
[420881894,1776696645551,-500.0,0.00014246,2]
[420881895,1776696645560,-852.55,0.00014246,2]
[420881896,1776696645570,-1256.17,0.00014246,2]
[420881897,1776696645579,-500.0,0.00014246,2]
[420881898,1776696645588,-500.0,0.00014246,2]
[420881899,1776696645598,-500.0,0.00014246,2]
[420881900,1776696645607,-3573.36,0.00014246,2]
[420881901,1776696645616,-4539.58,0.00014246,2]
[420881902,1776696645626,-2069.57,0.00014246,2]
[420881903,1776696645636,-6344.31,0.00014246,2]
[420881904,1776696645645,-549.82802434,0.00014246,2]
[420881905,1776696645655,-830.25,0.00014246,2]
[420881906,1776696645664,-500.0,0.00014246,2]
[420881907,1776696645674,-3326.62,0.00014246,2]
[420881908,1776696645683,-7592.59,0.00014246,2]
[420881909,1776696645731,-676.3,0.00014246,2]
[420881910,1776696645740,-1056.46,0.00014246,2]
[420881911,1776696645749,-644.42,0.00014246,2]
[420881912,1776696645760,-996.3,0.00014246,2]
[420881913,1776696645769,-500.0,0.00014246,2]
[420881914,1776696645778,-11307.08,0.00014246,2]
[420881915,1776696645787,-947.12,0.00014246,2]
[420881916,1776696645796,-1605.17,0.00014246,2]
[420881917,1776696645805,-869.48,0.00014246,2]
[420881918,1776696645815,-685.66,0.00014246,2]
[420881919,1776696645824,-2903.7,0.00014246,2]
[420881920,1776696645833,-500.0,0.00014246,2]
[420881921,1776696645842,-500.0,0.00014246,2]
[420881922,1776696645851,-500.0,0.00014246,2]
[420881923,1776696645860,-500.0,0.00014246,2]
[420881924,1776696645869,-500.0,0.00014246,2]
[420881925,1776696645879,-613.26,0.00014246,2]
[420881926,1776696645888,-500.0,0.00014246,2]
[420881927,1776696645897,-1096.81,0.00014246,2]
[420881928,1776696645906,-500.0,0.00014246,2]
[420881929,1776696645915,-1197.32,0.00014246,2]
[420881930,1776696645925,-2560.25,0.00014246,2]
[420881931,1776696645935,-232.1555079,0.00014246,2]
[420881932,1776696645944,-500.0,0.00014246,2]
[420881933,1776696645954,-891.0,0.00014246,2]
[420881934,1776696645963,-891.0,0.00014246,2]
[420881935,1776696645973,-891.0,0.00014246,2]
[420881936,1776696645983,-891.0,0.00014246,2]
[420881937,1776696645993,-891.0,0.00014246,2]
[420881938,1776696646002,-891.0,0.00014246,2]
[420881939,1776696646011,-891.0,0.00014246,2]
[420881940,1776696646022,-891.0,0.00014246,2]
[420881941,1776696646031,-891.0,0.00014246,2]
[420881942,1776696646040,-891.0,0.00014246,2]
[420881943,1776696646050,-886.39,0.00014246,2]
[420881944,1776696646062,-891.0,0.00014246,2]
[420881945,1776696646071,-891.0,0.00014246,2]
[420881946,1776696646081,-891.0,0.00014246,2]
[420881947,1776696646090,-891.0,0.00014246,2]
[420881948,1776696646099,-891.0,0.00014246,2]
[420881949,1776696646108,-891.0,0.00014246,2]
[420881950,1776696646118,-891.0,0.00014246,2]
[420881951,1776696646127,-891.0,0.00014246,2]
[420881952,1776696646136,-891.0,0.00014246,2]
[420881953,1776696646145,-891.0,0.00014246,2]
[420881954,1776696646155,-678.11,0.00014246,2]
[420881955,1776696646164,-500.0,0.00014246,2]
[420881956,1776696646174,-891.0,0.00014246,2]
[420881957,1776696646183,-366.9381193,0.00014246,2]
[420881958,1776696646193,-891.0,0.00014246,2]
[420881959,1776696646202,-623.03,0.00014246,2]
[420881960,1776696646212,-891.0,0.00014246,2]
[420881961,1776696646221,-968.78,0.00014246,2]
[420881962,1776696646230,-898.00268781,0.00014246,2]
[420881963,1776696646239,-500.0,0.00014246,2]
[420881964,1776696646249,-836.22,0.00014246,2]
[420881965,1776696646258,-500.0,0.00014246,2]
[420881966,1776696646267,-8847.38,0.00014246,2]
[420881967,1776696646276,-500.0,0.00014246,2]
[420881968,1776696646285,-547.13,0.00014246,2]
[420881969,1776696646294,-3313.74,0.00014246,2]
[420881970,1776696646304,-1371.83,0.00014246,2]
[420881971,1776696646313,-500.0,0.00014246,2]
[420881972,1776696646322,-5074.56,0.00014246,2]
[420881973,1776696646331,-1505.97,0.00014246,2]
[420881974,1776696646340,-1661.78,0.00014246,2]
[420881975,1776696646349,-1009.93,0.00014246,2]
[420881976,1776696646358,-531.0,0.00014246,2]
[420881977,1776696646367,-627.54,0.00014246,2]
[420881978,1776696646377,-500.0,0.00014246,2]
[420881979,1776696646386,-539.83,0.00014246,2]
[420881980,1776696646395,-743.11,0.00014246,2]
[420881981,1776696646404,-2073.43,0.00014246,2]
[420881982,1776696646414,-554.89,0.00014246,2]
[420881983,1776696646423,-582.62,0.00014246,2]
[420881984,1776696646432,-500.0,0.00014246,2]
[420881985,1776696646442,-2908.99,0.00014246,2]
[420881986,1776696646451,-500.0,0.00014246,2]
[420881987,1776696646460,-701.99,0.00014246,2]
[420881988,1776696646469,-1141.9,0.00014246,2]
[420881989,1776696646478,-1249.46,0.00014246,2]
[420881991,1776696646487,-500.0,0.00014246,2]
[420881992,1776696646497,-707.82,0.00014246,2]
[420881993,1776696646506,-7036.91,0.00014246,2]
[420881994,1776696646515,-2377.27,0.00014246,2]
[420881995,1776696646524,-875.64,0.00014246,2]
[420881996,1776696646533,-6048.3,0.00014246,2]
[420881997,1776696646542,-500.0,0.00014246,2]
[420881998,1776696646551,-1882.47,0.00014246,2]
[420881999,1776696646560,-500.0,0.00014246,2]
[420882000,1776696646570,-3034.32,0.00014246,2]
[420882001,1776696646579,-500.0,0.00014246,2]
[420882003,1776696646589,-818.65,0.00014246,2]
[420882004,1776696646598,-699.34,0.00014246,2]
[420882005,1776696646608,-3464.74,0.00014246,2]
[420882006,1776696646617,-4871.73,0.00014246,2]
[420882007,1776696646626,-492.13461175,0.00014246,2]
[420882008,1776696646635,-500.0,0.00014246,2]
[420882010,1776696646644,-6287.28,0.00014246,2]
[420882011,1776696646653,-500.0,0.00014246,2]
[420882012,1776696646662,-890.69,0.00014246,2]
[420882013,1776696646672,-500.0,0.00014246,2]
[420882014,1776696646682,-500.0,0.00014246,2]
[420882015,1776696646691,-5009.47,0.00014246,2]
[420882016,1776696646700,-500.0,0.00014246,2]
[420882017,1776696646709,-15915.66,0.00014246,2]
[420882018,1776696646718,-4884.2,0.00014246,2]
[420882019,1776696646727,-500.0,0.00014246,2]
[420882020,1776696646736,-10006.4,0.00014246,2]
[420882021,1776696646746,-4637.64,0.00014246,2]
[420882022,1776696646755,-500.0,0.00014246,2]
[420882023,1776696646766,-500.0,0.00014246,2]
[420882024,1776696646775,-730.92,0.00014246,2]
[420882025,1776696646784,-1632.29,0.00014246,2]
[420882026,1776696646793,-1363.78,0.00014246,2]
[420882027,1776696646803,-500.0,0.00014246,2]
[420882028,1776696646812,-3657.71,0.00014246,2]
[420882029,1776696646821,-2485.21,0.00014246,2]
[420882030,1776696646830,-1206.45,0.00014246,2]
[420882031,1776696646839,-15895.85,0.00014246,2]
[420882032,1776696646849,-500.0,0.00014246,2]
[420882033,1776696646858,-1632.78,0.00014246,2]
[420882034,1776696646867,-500.0,0.00014246,2]
[420882035,1776696646876,-325.57437443,0.00014246,2]
[420882036,1776696646885,-11810.45,0.00014246,2]
[420882037,1776696646894,-9374.56,0.00014246,2]
[420882038,1776696646903,-1190.0,0.00014247,2]
[420882039,1776696646913,-500.0,0.00014273,2]
[420882040,1776696646922,-500.0,0.00014273,2]
[420882041,1776696646931,-500.0,0.00014273,2]
[420882042,1776696646940,-2312.83697232,0.00014285,2]
[420882043,1776696646949,-277.68680117,0.00014299,2]
[420882044,1776696646959,-162.0,0.000143,2]
[420882045,1776696646968,-4390.45098222,0.00014498,2]
[420882046,1776696646978,-500.0,0.0001452,2]
[420882047,1776696646987,-500.0,0.0001452,2]
[420882048,1776696646997,-539.182,0.0001452,2]
[420882049,1776696647007,-610.26,0.0001452,2]
[420882050,1776696647016,-602.11,0.0001452,2]
[420882051,1776696647025,-500.0,0.0001452,2]
[420882052,1776696647035,-500.0,0.0001452,2]
[420882053,1776696647044,-500.0,0.0001452,2]
[420882054,1776696647053,-1000.0,0.0001452,2]
[420882055,1776696647062,-956.57,0.0001452,2]
[420882056,1776696647072,-630.47,0.0001452,2]
[420882057,1776696647082,-500.0,0.0001452,2]
[420882058,1776696647091,-500.0,0.0001452,2]
[420882059,1776696647100,-501.73178861,0.0001452,2]
[420882060,1776696647110,-532.09,0.0001452,2]
[420882061,1776696647120,-622.23,0.0001452,2]
[420882062,1776696647129,-500.0,0.0001452,2]
[420882063,1776696647138,-500.0,0.0001452,2]
[420882064,1776696647148,-704.3,0.0001452,2]
[420882065,1776696647157,-690.29,0.0001452,2]
[420882066,1776696647166,-789.51,0.0001452,2]
[420882067,1776696647175,-515.0,0.0001452,2]
[420882068,1776696647186,-832.46,0.0001452,2]
[420882069,1776696647195,-930.35,0.0001452,2]
[420882070,1776696647205,-955.21,0.0001452,2]
[420882071,1776696647214,-726.69,0.0001452,2]
[420882072,1776696647223,-517.82,0.0001452,2]
[420882073,1776696647232,-500.0,0.0001452,2]
[420882074,1776696647241,-1042.5,0.0001452,2]
[420882075,1776696647250,-500.0,0.0001452,2]
[420882076,1776696647260,-565.17,0.0001452,2]
[420882077,1776696647269,-1002.87,0.0001452,2]
[420882078,1776696647278,-500.0,0.0001452,2]
[420882079,1776696647287,-818.35,0.0001452,2]
[420882080,1776696647296,-500.0,0.0001452,2]
[420882081,1776696647305,-3024.12,0.0001452,2]
[420882082,1776696647314,-866.55,0.0001452,2]
[420882083,1776696647323,-500.0,0.0001452,2]
[420882084,1776696647332,-500.0,0.0001452,2]
[420882085,1776696647341,-244.81071656,0.0001452,2]
[420882086,1776696647350,-587.08,0.0001452,2]
[420882087,1776696647359,-500.0,0.0001452,2]
[420882088,1776696647368,-500.0,0.0001452,2]
[420882089,1776696647377,-500.0,0.0001452,2]
[420882090,1776696647387,-543.95,0.0001452,2]
[420882091,1776696647396,-500.0,0.0001452,2]
[420882092,1776696647405,-1768.45,0.0001452,2]
[420882093,1776696647415,-500.0,0.0001452,2]
[420882094,1776696647424,-591.8,0.0001452,2]
[420882095,1776696647433,-822.54,0.0001452,2]
[420882096,1776696647443,-500.0,0.0001452,2]
[420882097,1776696647454,-963.63,0.0001452,2]
[420882098,1776696647463,-500.0,0.0001452,2]
[420882099,1776696647472,-500.0,0.0001452,2]
[420882100,1776696647482,-754.0,0.0001452,2]
[420882101,1776696647491,-500.0,0.0001452,2]
[420882102,1776696647500,-500.0,0.0001452,2]
[420882103,1776696647510,-500.0,0.0001452,2]
[420882104,1776696647518,-550.65,0.0001452,2]
[420882105,1776696647528,-500.0,0.0001452,2]
[420882106,1776696647538,-1156.48,0.0001452,2]
[420882107,1776696647547,-500.0,0.0001452,2]
[420882108,1776696647557,-1510.15,0.0001452,2]
[420882109,1776696647566,-500.0,0.0001452,2]
[420882110,1776696647575,-1473.14,0.0001452,2]
[420882111,1776696647584,-500.0,0.0001452,2]
[420882112,1776696647593,-1885.11,0.0001452,2]
[420882113,1776696647603,-500.0,0.0001452,2]
[420882114,1776696647612,-609.17,0.0001452,2]
[420882115,1776696647621,-828.28,0.0001452,2]
[420882116,1776696647630,-500.0,0.0001452,2]
[420882117,1776696647639,-968.9,0.0001452,2]
[420882118,1776696647649,-4271.56,0.0001452,2]
[420882119,1776696647658,-844.7,0.0001452,2]
[420882120,1776696647667,-7286.0,0.0001452,2]
[420882121,1776696647676,-500.0,0.0001452,2]
[420882122,1776696647685,-852.55,0.0001452,2]
[420882123,1776696647695,-1256.17,0.0001452,2]
[420882124,1776696647703,-500.0,0.0001452,2]
[420882125,1776696647713,-500.0,0.0001452,2]
[420882126,1776696647722,-500.0,0.0001452,2]
[420882127,1776696647732,-3573.36,0.0001452,2]
[420882128,1776696647741,-4539.58,0.0001452,2]
[420882129,1776696647750,-2069.57,0.0001452,2]
[420882130,1776696647759,-6344.31,0.0001452,2]
[420882131,1776696647768,-830.25,0.0001452,2]
[420882132,1776696647778,-500.0,0.0001452,2]
[420882133,1776696647787,-3326.62,0.0001452,2]
[420882134,1776696647796,-7592.59,0.0001452,2]
[420882135,1776696647805,-676.3,0.0001452,2]
[420882136,1776696647815,-1056.46,0.0001452,2]
[420882137,1776696647824,-644.42,0.0001452,2]
[420882138,1776696647833,-996.3,0.0001452,2]
[420882139,1776696647843,-500.0,0.0001452,2]
[420882140,1776696647852,-11307.08,0.0001452,2]
[420882141,1776696647861,-947.12,0.0001452,2]
[420882142,1776696647870,-1605.17,0.0001452,2]
[420882143,1776696647879,-869.48,0.0001452,2]
[420882144,1776696647888,-685.66,0.0001452,2]
[420882145,1776696647898,-2903.7,0.0001452,2]
[420882146,1776696647907,-500.0,0.0001452,2]
[420882147,1776696647916,-500.0,0.0001452,2]
[420882148,1776696647925,-500.0,0.0001452,2]
[420882149,1776696647935,-500.0,0.0001452,2]
[420882150,1776696647945,-500.0,0.0001452,2]
[420882151,1776696647954,-613.26,0.0001452,2]
[420882152,1776696647963,-500.0,0.0001452,2]
[420882153,1776696647973,-1096.81,0.0001452,2]
[420882154,1776696647982,-500.0,0.0001452,2]
[420882155,1776696647992,-1197.32,0.0001452,2]
[420882156,1776696648001,-2560.25,0.0001452,2]
[420882157,1776696648011,-500.0,0.0001452,2]
[420882158,1776696648020,-886.39,0.0001452,2]
[420882159,1776696648030,-678.11,0.0001452,2]
[420882160,1776696648039,-500.0,0.0001452,2]
[420882161,1776696648048,-623.03,0.0001452,2]
[420882162,1776696648058,-968.78,0.0001452,2]
[420882163,1776696648067,-540.17015709,0.0001452,2]
[420882164,1776696648077,-836.22,0.0001452,2]
[420882165,1776696648086,-500.0,0.0001452,2]
[420882166,1776696648095,-8847.38,0.0001452,2]
[420882167,1776696648105,-500.0,0.0001452,2]
[420882168,1776696648114,-547.13,0.0001452,2]
[420882169,1776696648123,-3313.74,0.0001452,2]
[420882170,1776696648132,-1371.83,0.0001452,2]
[420882171,1776696648142,-500.0,0.0001452,2]
[420882172,1776696648151,-5074.56,0.0001452,2]
[420882173,1776696648160,-1505.97,0.0001452,2]
[420882174,1776696648169,-1661.78,0.0001452,2]
[420882175,1776696648179,-1009.93,0.0001452,2]
[420882176,1776696648188,-531.0,0.0001452,2]
[420882177,1776696648197,-627.54,0.0001452,2]
[420882178,1776696648206,-500.0,0.0001452,2]
[420882179,1776696648216,-539.83,0.0001452,2]
[420882180,1776696648226,-743.11,0.0001452,2]
[420882181,1776696648235,-2073.43,0.0001452,2]
[420882182,1776696648244,-554.89,0.0001452,2]
[420882183,1776696648254,-582.62,0.0001452,2]
[420882184,1776696648263,-500.0,0.0001452,2]
[420882185,1776696648272,-2908.99,0.0001452,2]
[420882186,1776696648281,-500.0,0.0001452,2]
[420882187,1776696648291,-701.99,0.0001452,2]
[420882188,1776696648300,-1141.9,0.0001452,2]
[420882189,1776696648309,-1249.46,0.0001452,2]
[420882190,1776696648318,-500.0,0.0001452,2]
[420882191,1776696648328,-707.82,0.0001452,2]
[420882192,1776696648338,-7036.91,0.0001452,2]
[420882193,1776696648347,-2377.27,0.0001452,2]
[420882194,1776696648356,-875.64,0.0001452,2]
[420882195,1776696648365,-6048.3,0.0001452,2]
[420882196,1776696648374,-242.35324515,0.0001452,2]
[420882197,1776696648383,-1882.47,0.0001452,2]
[420882198,1776696648392,-500.0,0.0001452,2]
[420882199,1776696648402,-3034.32,0.0001452,2]
[420882200,1776696648411,-500.0,0.0001452,2]
[420882201,1776696648420,-818.65,0.0001452,2]
[420882202,1776696648429,-699.34,0.0001452,2]
[420882203,1776696648440,-3464.74,0.0001452,2]
[420882204,1776696648449,-4871.73,0.0001452,2]
[420882205,1776696648459,-500.0,0.0001452,2]
[420882206,1776696648468,-6287.28,0.0001452,2]
[420882207,1776696648477,-500.0,0.0001452,2]
[420882208,1776696648487,-890.69,0.0001452,2]
[420882209,1776696648496,-500.0,0.0001452,2]
[420882210,1776696648505,-500.0,0.0001452,2]
[420882211,1776696648515,-5009.47,0.0001452,2]
[420882212,1776696648524,-500.0,0.0001452,2]
[420882213,1776696648533,-15915.66,0.0001452,2]
[420882214,1776696648542,-4884.2,0.0001452,2]
[420882215,1776696648552,-500.0,0.0001452,2]
[420882216,1776696648561,-10006.4,0.0001452,2]
[420882217,1776696648570,-4637.64,0.0001452,2]
[420882218,1776696648579,-500.0,0.0001452,2]
[420882219,1776696648588,-500.0,0.0001452,2]
[420882220,1776696648598,-730.92,0.0001452,2]
[420882221,1776696648607,-1632.29,0.0001452,2]
[420882222,1776696648616,-1363.78,0.0001452,2]
[420882223,1776696648626,-500.0,0.0001452,2]
[420882224,1776696648635,-3657.71,0.0001452,2]
[420882225,1776696648645,-2485.21,0.0001452,2]
[420882226,1776696648654,-1206.45,0.0001452,2]
[420882227,1776696648663,-15895.85,0.0001452,2]
[420882228,1776696648673,-500.0,0.0001452,2]
[420882229,1776696648682,-1632.78,0.0001452,2]
[420882230,1776696648694,-500.0,0.0001452,2]
[420882231,1776696648703,-11810.45,0.0001452,2]
[420882232,1776696648712,-9374.56,0.0001452,2]